bitfinex-derivatives/quotes_SOLF0:USTF0_20250325
["timestamp","ask_amount","ask_price","bid_price","bid_amount"]
[1742945131529,8.19308828,143.91,143.9,0.04494389]
[1742945134141,8.19308828,143.91,143.83,8.19308828]
[1742945134441,8.19308828,143.87,143.82,38.54320177]
[1742945134634,33.07308828,143.87,143.83,6.9515]
[1742945135329,0.047505,143.86,143.84,0.04514667]
[1742945135532,0.047505,143.86,143.84,6.99644667]
[1742945136126,0.047505,143.86,143.84,0.04514667]
[1742945136333,8.19308828,143.85,143.84,0.04514667]
[1742945162065,33.09308828,143.85,143.84,0.04514667]
[1742945168166,8.19308828,143.85,143.84,0.04514667]
[1742945168371,33.09308828,143.85,143.84,0.04514667]
[1742945190790,24.9,143.85,143.84,0.04514667]
[1742945191193,24.9,143.85,143.84,6.99644667]
[1742945191394,24.9,143.85,143.84,0.04514667]
[1742945192996,0.047505,143.86,143.84,0.04514667]
[1742945193195,24.88,143.85,143.84,0.04514667]
[1742945195299,24.927505,143.86,143.84,0.04514667]
[1742945195497,24.927505,143.86,143.84,6.99634667]
[1742945195694,24.927505,143.86,143.84,0.04514667]
[1742945201203,24.927505,143.86,143.84,6.99644667]
[1742945201802,24.927505,143.86,143.84,0.04514667]
[1742945207105,0.047505,143.86,143.84,8.23823495]
[1742945207305,10.50272454,143.91,143.84,8.23823495]
[1742945207506,10.50272454,143.91,143.89,6.9486]
[1742945207706,35.38272454,143.91,143.86,8.19308828]
[1742945207906,24.88,143.91,143.86,8.19308828]
[1742945208402,24.88,143.91,143.9,6.9484]
[1742945209111,24.88,143.91,143.87,0.04711651]
[1742945209513,24.88,143.91,143.88,6.9491]
[1742945210013,33.07308828,143.91,143.88,6.9491]
[1742945210703,8.19308828,143.89,143.87,0.04711651]
[1742945212208,33.07308828,143.91,143.87,0.04711651]
[1742945212617,33.07308828,143.91,143.88,6.949]
[1742945213817,33.07308828,143.91,143.89,6.9488]
[1742945214915,24.88,143.91,143.89,6.9488]
[1742945218312,24.88,143.91,143.88,6.9491]
[1742945218919,0.04778141,143.92,143.88,6.9491]
[1742945219118,24.90778141,143.92,143.88,6.9491]
[1742945220318,8.19308828,143.91,143.88,6.9491]
[1742945221120,8.19308828,143.91,143.89,6.9488]
[1742945222022,0.04778141,143.92,143.9,8.19308828]
[1742945222620,0.04778141,143.92,143.91,6.9479]
[1742945227916,237.51308828,144.0,143.91,6.94]
[1742945228120,237.51308828,144.0,143.95,8.19308828]
[1742945228320,262.37308828,144.0,143.95,8.19308828]
[1742945229118,0.04787591,143.99,143.97,6.9447]
[1742945229514,0.04787591,143.99,143.96,0.04444044]
[1742945230323,0.04787591,143.99,143.98,6.9445]
[1742945233830,7.591e-05,143.99,143.98,6.9445]
[1742945235130,7.591e-05,143.99,143.98,13.8845]
[1742945240233,33.03308828,144.07,143.98,6.94]
[1742945240532,33.03308828,144.07,144.02,8.19308828]
[1742945240732,8.19308828,144.08,144.02,8.19308828]
[1742945240931,8.19308828,144.08,144.04,8.19308828]
[1742945241331,0.05156297,144.07,144.05,0.04675036]
[1742945244236,8.19308828,144.06,144.05,0.04675036]
[1742945244630,33.03308828,144.06,144.05,0.04675036]
[1742945251434,95.03308828,144.06,144.05,0.04675036]
[1742945262845,95.03308828,144.06,143.98,8.19308828]
[1742945263046,8.19308828,144.02,143.96,8.19308828]
[1742945263241,33.01308828,144.02,143.96,8.19308828]
[1742945263546,8.19308828,144.0,143.96,8.19308828]
[1742945264041,0.04990014,143.99,143.97,6.99774169]
[1742945264944,0.04990014,143.99,143.98,6.9445]
[1742945266248,62.04990014,143.99,143.98,6.9445]
[1742945266947,62.04990014,143.99,143.97,6.99804169]
[1742945267243,62.04990014,143.99,143.97,0.05314169]
[1742945267448,8.19308828,143.98,143.97,0.05314169]
[1742945267741,33.01308828,143.98,143.97,0.05314169]
[1742945275352,95.01308828,143.98,143.97,0.05314169]
[1742945275850,324.19308828,143.98,143.97,0.05314169]
[1742945293457,299.37308828,143.98,143.97,0.05314169]
[1742945293651,324.19308828,143.98,143.97,0.05314169]
[1742945296465,351.98308828,143.98,143.84,17.82888872]
[1742945296663,8.19308828,143.89,143.84,17.82888872]
[1742945296960,8.19308828,143.89,143.86,6.9501]
[1742945297464,8.24372183,143.89,143.86,7.00266441]
[1742945297658,8.24372183,143.89,143.86,0.00266441]
[1742945298360,8.24372183,143.89,143.87,6.9498]
[1742945299360,8.24372183,143.89,143.86,6.95276441]
[1742945299564,62.0,143.88,143.86,6.95276441]
[1742945300261,62.0,143.88,143.87,6.9498]
[1742945303763,70.19308828,143.88,143.86,0.00266441]
[1742945303966,8.19308828,143.87,143.86,0.00266441]
[1742945304155,8.19308828,143.87,143.81,6.9523]
[1742945304466,8.19308828,143.87,143.77,63.36320177]
[1742945304467,8.19308828,143.83,143.77,46.73629005]
[1742945304656,8.19308828,143.81,143.77,38.54320177]
[1742945304862,33.01308828,143.81,143.79,6.9536]
[1742945305263,33.06188478,143.81,143.79,7.00418719]
[1742945305968,33.06188478,143.81,143.8,6.9532]
[1742945307165,95.06188478,143.81,143.8,6.9532]
[1742945308563,70.24188478,143.81,143.8,6.9532]
[1742945310364,8.19308828,143.85,143.84,6.9509]
[1742945310565,33.03308828,143.85,143.84,6.9509]
[1742945311368,95.03308828,143.85,143.84,6.9509]
[1742945313266,95.03308828,143.85,143.83,0.04543832]
[1742945313468,8.19308828,143.84,143.76,8.19308828]
[1742945313669,24.84,143.85,143.76,8.19308828]
[1742945313670,8.19308828,143.8,143.78,6.9538]
[1742945314161,8.19308828,143.8,143.76,8.19308828]
[1742945314365,8.19308828,143.8,143.79,6.9537]
[1742945316672,70.19308828,143.8,143.79,6.9537]
[1742945318275,70.19308828,143.8,143.78,0.044919]
[1742945318479,70.19308828,143.8,143.71,8.19308828]
[1742945318680,8.19308828,143.76,143.71,8.19308828]
[1742945319579,8.19308828,143.76,143.75,6.9556]
[1742945319780,0.04881853,143.77,143.75,8.19308828]
[1742945320278,0.04881853,143.77,143.76,6.9549]
[1742945323579,0.04881853,143.77,143.75,0.04787325]
[1742945323981,8.19308828,143.76,143.75,7.00327325]
[1742945324378,8.19308828,143.76,143.75,0.04787325]
[1742945325185,8.19308828,143.76,143.75,7.00347325]
[1742945325582,33.08190681,143.77,143.75,0.04787325]
[1742945326080,33.08190681,143.77,143.76,6.9552]
[1742945328185,95.08190681,143.77,143.76,6.9552]
[1742945328887,95.08190681,143.77,143.75,7.00337325]
[1742945332287,95.08190681,143.77,143.75,0.04787325]
[1742945332789,95.08190681,143.77,143.75,7.00347325]
[1742945335287,95.08190681,143.77,143.75,0.04787325]
[1742945336093,102.03660681,143.77,143.75,0.04787325]
[1742945337994,95.08190681,143.77,143.75,0.04787325]
[1742945339293,95.08190681,143.77,143.75,7.00347325]
[1742945342096,86.88881853,143.77,143.76,6.9552]
[1742945345102,62.04881853,143.77,143.76,6.9552]
[1742945381430,70.24190681,143.77,143.75,0.04787325]
[1742945381631,95.06190681,143.77,143.75,0.04787325]
[1742945382229,6.9552,143.76,143.75,0.04787325]
[1742945382936,102.01680681,143.77,143.75,0.04787325]
[1742945386541,6.9552,143.76,143.75,0.04787325]
[1742945394242,95.06190681,143.77,143.75,0.04787325]
[1742945394842,70.24190681,143.77,143.75,0.04787325]
[1742945395346,70.24190681,143.77,143.76,6.9552]
[1742945396242,62.04881853,143.77,143.76,6.9552]
[1742945400952,95.06190681,143.77,143.75,0.04787325]
[1742945403051,70.24190681,143.77,143.75,0.04787325]
[1742945404446,70.24190681,143.77,143.76,6.9552]
[1742945404648,62.04881853,143.77,143.76,6.9552]
[1742945405551,70.24190681,143.77,143.75,0.04787325]
[1742945405740,95.06190681,143.77,143.75,0.04787325]
[1742945406653,102.01680681,143.77,143.75,0.04787325]
[1742945407852,95.06190681,143.77,143.75,0.04787325]
[1742945409057,6.9552,143.76,143.75,0.04787325]
[1742945410050,102.01680681,143.77,143.75,0.04787325]
[1742945411554,95.06190681,143.77,143.76,6.9552]
[1742945411951,95.06190681,143.77,143.75,0.04787325]
[1742945413457,95.06190681,143.77,143.75,7.00337325]
[1742945413757,95.06190681,143.77,143.75,0.04787325]
[1742945414456,102.01680681,143.77,143.75,0.04787325]
[1742945416659,102.01680681,143.77,143.65,38.54320177]
[1742945416660,33.06190681,143.77,143.65,38.54320177]
[1742945416857,8.19308828,143.7,143.65,38.54320177]
[1742945417057,8.19308828,143.7,143.69,6.9585]
[1742945417252,8.19308828,143.74,143.69,8.19308828]
[1742945417655,8.19308828,143.74,143.73,6.9566]
[1742945418062,0.04751892,143.75,143.71,8.19308828]
[1742945418361,0.04751892,143.75,143.74,6.9561]
[1742945419558,62.04751892,143.75,143.74,6.9561]
[1742945422456,62.04751892,143.75,143.73,7.00332923]
[1742945423462,69.00321892,143.75,143.73,7.00332923]
[1742945424156,62.04751892,143.75,143.73,7.00332923]
[1742945426359,62.04751892,143.75,143.73,0.04692923]
[1742945426360,69.00321892,143.75,143.73,0.04692923]
[1742945426959,15.14918828,143.74,143.73,0.04692923]
[1742945429164,6.9578,143.71,143.64,101.90640357]
[1742945429363,8.19308828,143.7,143.65,46.73629005]
[1742945429762,8.19308828,143.7,143.68,6.9587]
[1742945430265,8.24281541,143.7,143.68,7.01197776]
[1742945430465,8.24281541,143.7,143.69,6.9585]
[1742945431864,8.24281541,143.7,143.68,7.01207776]
[1742945432667,8.24281541,143.7,143.69,6.9585]
[1742945432870,70.24281541,143.7,143.69,6.9585]
[1742945433566,70.24281541,143.7,143.68,7.01207776]
[1742945433766,70.24281541,143.7,143.68,0.05327776]
[1742945434665,70.24281541,143.7,143.69,6.9585]
[1742945435669,70.24281541,143.7,143.68,7.01207776]
[1742945436164,62.04972713,143.7,143.68,7.01207776]
[1742945437670,62.04972713,143.7,143.69,6.9585]
[1742945437868,62.04972713,143.7,143.69,15.15158828]
[1742945438069,8.19308828,143.74,143.73,6.9566]
[1742945438272,24.82,143.75,143.71,8.19308828]
[1742945438962,62.0,143.74,143.71,8.19308828]
[1742945439162,62.04517678,143.74,143.72,0.04601739]
[1742945440574,62.04517678,143.74,143.73,6.9562]
[1742945441170,70.23826506,143.74,143.73,6.9562]
[1742945442173,62.04517678,143.74,143.73,6.9562]
[1742945443076,70.23826506,143.74,143.72,7.00291739]
[1742945443678,70.23826506,143.74,143.73,6.9566]
[1742945445168,70.23826506,143.74,143.72,7.00291739]
[1742945447177,70.23826506,143.74,143.73,6.9566]
[1742945448382,77.19446506,143.74,143.72,7.00291739]
[1742945448878,77.19446506,143.74,143.72,0.04601739]
[1742945449480,70.23826506,143.74,143.72,0.04601739]
[1742945449984,70.23826506,143.74,143.73,6.9566]
[1742945464193,62.04517678,143.74,143.73,6.9566]
[1742945464590,8.19308828,143.77,143.76,6.9552]
[1742945465695,70.19308828,143.77,143.76,6.9552]
[1742945466895,70.19308828,143.77,143.75,0.0471473]
[1742945467597,70.19308828,143.77,143.75,7.0025473]
[1742945469298,70.19308828,143.77,143.76,6.9552]
[1742945469591,70.19308828,143.77,143.75,0.0471473]
[1742945469894,62.0,143.77,143.76,6.9552]
[1742945486517,70.19308828,143.77,143.75,7.0025473]
[1742945486714,6.9552,143.76,143.75,0.0471473]
[1742945487012,32.99308828,143.77,143.67,46.73629005]
[1742945487315,8.19308828,143.74,143.69,8.19308828]
[1742945487909,8.19308828,143.74,143.7,0.04560995]
[1742945487910,0.04493351,143.73,143.7,0.04560995]
[1742945488110,3.351e-05,143.73,143.71,8.19308828]
[1742945488514,3.351e-05,143.73,143.72,6.9571]
[1742945489813,62.00003351,143.73,143.72,6.9571]
[1742945508636,68.95693351,143.73,143.7,7.00350995]
[1742945508833,8.19308828,143.72,143.7,0.04560995]
[1742945509027,24.8,143.71,143.7,0.04560995]
[1742945510442,31.7576,143.71,143.7,0.04560995]
[1742945511842,24.8,143.71,143.7,0.04560995]
[1742945514641,31.7576,143.71,143.7,0.04560995]
[1742945520847,31.7576,143.71,143.67,6.9594]
[1742945520848,39.95308828,143.71,143.6,46.73629005]
[1742945521043,8.19308828,143.65,143.6,46.73629005]
[1742945521244,8.19308828,143.65,143.62,6.9617]
[1742945521444,15.15388828,143.65,143.62,6.9617]
[1742945521951,15.2027603,143.65,143.62,7.01446616]
[1742945522248,15.2027603,143.65,143.63,6.9614]
[1742945522446,8.2419603,143.65,143.63,6.9614]
[1742945522647,8.2419603,143.65,143.62,0.05276616]
[1742945522843,0.04887202,143.65,143.64,6.961]
[1742945523950,62.04887202,143.65,143.64,6.961]
[1742945538157,70.2419603,143.65,143.63,6.9613]
[1742945539752,24.8,143.64,143.62,0.05276616]
[1742945540763,24.8,143.64,143.63,6.9614]
[1742945541063,62.04887202,143.65,143.62,8.24585444]
[1742945541359,62.04887202,143.65,143.64,6.961]
[1742945545566,62.04887202,143.65,143.63,6.9612]
[1742945546462,62.04887202,143.65,143.64,6.961]
[1742945549766,62.04887202,143.65,143.63,6.9613]
[1742945554470,62.04887202,143.65,143.62,0.05276616]
[1742945554673,70.2419603,143.65,143.62,0.05276616]
[1742945555368,77.2026603,143.65,143.62,7.01466616]
[1742945558376,77.2026603,143.65,143.63,6.9613]
[1742945558377,70.2419603,143.65,143.63,6.9613]
[1742945560480,77.2024603,143.65,143.63,6.9613]
[1742945561576,70.2419603,143.65,143.63,6.9613]
[1742945563181,77.2024603,143.65,143.63,6.9613]
[1742945563474,70.2419603,143.65,143.63,6.9613]
[1742945565278,77.2024603,143.65,143.62,7.01446616]
[1742945568277,8.19308828,143.63,143.62,0.05276616]
[1742945569181,15.15448828,143.63,143.62,0.05276616]
[1742945571187,8.19308828,143.63,143.62,0.05276616]
[1742945573089,15.15448828,143.63,143.62,0.05276616]
[1742945576994,8.19308828,143.63,143.62,0.05276616]
[1742945577895,15.15448828,143.63,143.62,0.05276616]
[1742945580102,8.19308828,143.63,143.62,0.05276616]
[1742945580602,8.19308828,143.63,143.62,7.01466616]
[1742945580801,8.19308828,143.63,143.62,0.05276616]
[1742945583504,8.19308828,143.63,143.62,7.01466616]
[1742945584203,62.04887202,143.65,143.62,0.05276616]
[1742945585404,62.04887202,143.65,143.64,6.961]
[1742945586007,62.04887202,143.65,143.63,6.9613]
[1742945587610,62.04887202,143.65,143.62,7.01446616]
[1742945587806,8.19308828,143.64,143.62,0.05276616]
[1742945588305,6.9614,143.63,143.62,0.05276616]
[1742945591108,15.15418828,143.64,143.62,0.05276616]
[1742945593418,6.9614,143.63,143.62,0.05276616]
[1742945594517,15.15418828,143.64,143.62,0.05276616]
[1742945595016,8.19308828,143.64,143.62,0.05276616]
[1742945595614,8.19308828,143.64,143.63,6.9614]
[1742945596419,62.04887202,143.65,143.64,6.961]
[1742945602622,70.2419603,143.65,143.62,0.05276616]
[1742945602823,8.19308828,143.63,143.62,0.05276616]
[1742945603511,15.15448828,143.63,143.62,0.05276616]
[1742945604622,8.19308828,143.63,143.62,0.05276616]
[1742945607923,254.71852695,143.73,143.62,39.98585444]
[1742945608133,262.91161523,143.73,143.67,8.19308828]
[1742945608426,8.19308828,143.71,143.65,8.19308828]
[1742945608928,62.0,143.7,143.67,6.9591]
[1742945609130,0.04507655,143.69,143.67,0.05351632]
[1742945610425,0.04507655,143.69,143.68,6.959]
[1742945611827,0.04507655,143.69,143.67,7.01281632]
[1742945612028,33.01816483,143.69,143.67,0.05351632]
[1742945612427,62.0,143.68,143.67,7.01291632]
[1742945616333,62.0,143.68,143.67,0.05351632]
[1742945618933,62.0,143.68,143.67,7.01301632]
[1742945619326,62.0,143.68,143.67,0.05351632]
[1742945624025,62.0,143.68,143.67,7.01301632]
[1742945624233,62.0,143.68,143.67,15.2061046]
[1742945627131,229.72,143.73,143.67,8.2466046]
[1742945627332,229.72,143.73,143.72,8.19308828]
[1742945627521,24.78,143.76,143.72,8.19308828]
[1742945627722,24.78,143.76,143.73,6.9565]
[1742945627929,24.78,143.76,143.72,8.19308828]
[1742945628130,62.0,143.75,143.72,8.19308828]
[1742945628334,62.04723191,143.75,143.74,6.9561]
[1742945631939,62.04723191,143.75,143.73,7.00845893]
[1742945632139,62.04723191,143.75,143.73,0.05205893]
[1742945632739,62.04723191,143.75,143.74,6.9561]
[1742945636044,62.04723191,143.75,143.73,0.05205893]
[1742945636645,69.00323191,143.75,143.73,0.05205893]
[1742945636844,62.04723191,143.75,143.73,0.05205893]
[1742945638445,6.9561,143.74,143.73,0.05205893]
[1742945642451,6.9561,143.74,143.73,0.00037019]
[1742945646446,101.95602019,143.75,143.73,0.00037019]
[1742945647046,86.80723191,143.75,143.73,6.95657019]
[1742945649847,62.04723191,143.75,143.73,6.95657019]
[1742945650248,69.00293191,143.75,143.73,0.00037019]
[1742945650457,70.24032019,143.75,143.73,0.00037019]
[1742945650851,31.7161,143.74,143.73,0.00037019]
[1742945651848,6.9582,143.7,143.67,6.9593]
[1742945652157,8.19308828,143.68,143.63,9.6636803]
[1742945652453,8.19308828,143.66,143.63,9.6636803]
[1742945652851,6.9605,143.65,143.63,9.6636803]
[1742945653056,6.9605,143.65,143.63,9.71116504]
[1742945653257,8.23754222,143.66,143.63,9.71116504]
[1742945653454,15.19774222,143.66,143.63,9.71116504]
[1742945653754,8.23754222,143.66,143.63,16.67246504]
[1742945654051,0.04445394,143.66,143.63,9.71116504]
[1742945654256,0.04445394,143.66,143.65,6.9605]
[1742945655058,62.04445394,143.66,143.65,6.9605]
[1742945660951,0.04445394,143.66,143.65,6.9605]
[1742945661151,0.04445394,143.66,143.65,19.77849409]
[1742945661357,6.9575,143.72,143.68,6.9587]
[1742945662558,0.04838569,143.71,143.69,0.05251875]
[1742945663965,62.0,143.7,143.69,0.05251875]
[1742945664166,93.7381,143.7,143.69,0.05251875]
[1742945664359,86.78,143.7,143.69,0.05251875]
[1742945666168,93.7381,143.7,143.69,0.05251875]
[1742945666369,86.78,143.7,143.69,0.05251875]
[1742945667165,62.0,143.7,143.69,0.05251875]
[1742945669367,62.0,143.7,143.69,7.01101875]
[1742945669569,0.04838569,143.71,143.69,0.05251875]
[1742945669769,0.04838569,143.71,143.69,12.87051284]
[1742945669968,0.04838569,143.71,143.7,6.9581]
[1742945672568,62.04838569,143.71,143.7,6.9581]
[1742945673072,62.04838569,143.71,143.69,0.05251875]
[1742945673974,62.04838569,143.71,143.7,6.9581]
[1742945676879,62.04838569,143.71,143.7,15.15443052]
[1742945682879,62.04838569,143.71,143.7,8.19633052]
[1742945683177,62.04838569,143.71,143.69,7.01081875]
[1742945684479,62.04838569,143.71,143.7,6.9581]
[1742945694688,24.76,143.74,143.73,6.9566]
[1742945695090,8.19633052,143.75,143.73,6.9566]
[1742945695789,62.0,143.74,143.73,6.9566]
[1742945695990,62.0,143.74,143.73,7.00626047]
[1742945700994,62.0,143.74,143.73,0.04966047]
[1742945701391,68.9561,143.74,143.73,0.04966047]
[1742945701894,93.7161,143.74,143.73,0.00520653]
[1742945702691,86.76,143.74,143.73,0.00520653]
[1742945704592,86.76,143.74,143.73,6.96180653]
[1742945704787,62.0,143.74,143.73,6.96180653]
[1742945704994,6.9535,143.8,143.73,8.20153705]
[1742945705192,6.9535,143.8,143.75,8.19633052]
[1742945705599,8.19633052,143.79,143.75,8.19633052]
[1742945705800,8.19633052,143.77,143.72,32.95633052]
[1742945706199,7.00799556,143.76,143.73,7.00429102]
[1742945706888,8.19633052,143.75,143.73,0.04789102]
[1742945707090,32.95633052,143.75,143.73,0.04789102]
[1742945707498,6.9561,143.74,143.73,0.04789102]
[1742945707889,68.9561,143.74,143.73,0.04789102]
[1742945711000,68.9561,143.74,143.73,0.00404317]
[1742945711200,62.0,143.74,143.64,32.95633052]
[1742945711397,62.0,143.74,143.62,71.61105173]
[1742945711398,8.19633052,143.69,143.62,71.61105173]
[1742945711598,8.19633052,143.67,143.62,71.61105173]
[1742945711798,8.19633052,143.67,143.65,6.9604]
[1742945712396,8.24427733,143.67,143.65,7.00874781]
[1742945712701,8.24427733,143.67,143.65,0.04834781]
[1742945712999,24.76,143.66,143.65,0.04834781]
[1742945713507,24.76,143.66,143.6,38.65472121]
[1742945713701,8.19633052,143.63,143.6,38.65472121]
[1742945714002,32.95633052,143.63,143.6,38.65472121]
[1742945714598,62.0,143.62,143.6,38.70003107]
[1742945715001,62.0,143.62,143.6,45.66273107]
[1742945716405,62.0,143.62,143.6,7.00800986]
[1742945718403,62.0,143.62,143.6,0.04530986]
[1742945718701,0.04874597,143.63,143.6,24.82530986]
[1742945718904,24.78,143.7,143.61,12.83148321]
[1742945719203,24.78,143.69,143.61,12.83148321]
[1742945719703,62.0,143.68,143.61,12.83148321]
[1742945719910,0.05250896,143.66,143.64,0.04547696]
[1742945720507,0.05250896,143.66,143.65,6.9605]
[1742945723306,62.05250896,143.66,143.65,6.9605]
[1742945724911,86.81250896,143.66,143.64,0.04547696]
[1742945725111,93.77280896,143.66,143.64,0.04547696]
[1742945725909,86.81250896,143.66,143.64,0.04547696]
[1742945726913,93.77250896,143.66,143.64,0.04547696]
[1742945727811,86.81250896,143.66,143.57,37.59148321]
[1742945728011,86.76,143.66,143.57,37.59148321]
[1742945728311,6.9608,143.65,143.61,6.9624]
[1742945728711,0.04688011,143.64,143.62,0.04579204]
[1742945730208,7.00798011,143.64,143.62,0.04579204]
[1742945730707,6.9614,143.63,143.62,0.04579204]
[1742945731007,31.7414,143.63,143.62,0.04579204]
[1742945731212,44.57288321,143.63,143.62,0.04579204]
[1742945731508,6.9636,143.59,143.56,6.9645]
[1742945731713,31.7436,143.59,143.53,12.83148321]
[1742945732111,24.78,143.59,143.53,12.83148321]
[1742945732509,24.78,143.59,143.55,12.83148321]
[1742945732710,0.05003155,143.57,143.56,6.9648]
[1742945734114,62.05003155,143.57,143.56,6.9648]
[1742945750630,62.05003155,143.57,143.56,15.18057868]
[1742945760340,229.7,143.64,143.62,6.9619]
[1742945760538,229.7,143.64,143.6,8.21577868]
[1742945761339,0.04627162,143.63,143.61,0.04526752]
[1742945761540,7.00777162,143.63,143.61,7.00746752]
[1742945763940,0.04627162,143.63,143.61,7.00746752]
[1742945765842,7.00777162,143.63,143.61,7.00746752]
[1742945766039,8.2620503,143.63,143.61,0.04526752]
[1742945766242,24.78,143.62,143.56,8.21577868]
[1742945766441,6.9632,143.6,143.56,8.21577868]
[1742945766641,8.21577868,143.61,143.56,8.21577868]
[1742945766842,15.17847868,143.61,143.56,8.21577868]
[1742945767343,0.04970446,143.6,143.58,6.9636]
[1742945767846,0.04970446,143.6,143.59,6.9634]
[1742945771646,0.04970446,143.6,143.58,15.17937868]
[1742945771943,0.04970446,143.6,143.58,6.9636]
[1742945772749,0.04970446,143.6,143.57,7.0164909]
[1742945773044,0.04970446,143.6,143.58,6.9634]
[1742945774346,7.01260446,143.6,143.58,6.9634]
[1742945774551,7.01260446,143.6,143.57,7.0165909]
[1742945774747,0.04970446,143.6,143.57,7.0165909]
[1742945775252,7.01280446,143.6,143.57,7.0165909]
[1742945777852,6.9634,143.59,143.57,7.0165909]
[1742945778757,7.01280446,143.6,143.57,7.0165909]
[1742945779459,7.01280446,143.6,143.58,6.9638]
[1742945781053,7.01280446,143.6,143.57,7.0164909]
[1742945783356,7.01280446,143.6,143.58,6.9638]
[1742945786257,7.01280446,143.6,143.57,7.0165909]
[1742945787757,7.01280446,143.6,143.58,6.9638]
[1742945791465,0.04970446,143.6,143.58,6.9638]
[1742945801772,0.04970446,143.6,143.59,6.9634]
[1742945810378,4.46e-06,143.6,143.59,6.9634]
[1742945810679,24.76,143.68,143.59,6.96]
[1742945810874,24.76,143.68,143.63,8.21577868]
[1742945811272,24.76,143.68,143.65,8.21577868]
[1742945811476,229.78,143.7,143.65,8.21577868]
[1742945811677,0.05221513,143.68,143.65,8.26566314]
[1742945811877,0.05221513,143.68,143.67,6.9595]
[1742945812582,0.05221513,143.68,143.67,15.17527868]
[1742945816582,8.21577868,143.73,143.69,6.9585]
[1742945816983,15.17267868,143.73,143.67,8.21577868]
[1742945817184,8.21577868,143.73,143.7,6.9578]
[1742945817783,8.26428341,143.73,143.7,7.00644239]
[1742945818285,0.04850473,143.73,143.7,7.00644239]
[1742945819490,7.00510473,143.73,143.7,7.00644239]
[1742945820185,0.04850473,143.73,143.7,0.04864239]
[1742945820487,0.04850473,143.73,143.71,8.21577868]
[1742945820891,0.04850473,143.73,143.72,6.9571]
[1742945821083,8.21577868,143.77,143.71,8.21577868]
[1742945821290,237.91577868,143.79,143.73,8.21577868]
[1742945821688,6.9545,143.78,143.74,6.9559]
[1742945821989,237.91577868,143.79,143.74,6.9559]
[1742945822190,0.04952009,143.77,143.75,0.05069734]
[1742945822888,7.00422009,143.77,143.75,0.05069734]
[1742945823591,6.9552,143.76,143.75,0.05069734]
[1742945827891,31.6952,143.76,143.75,0.05069734]
[1742945831392,24.74,143.76,143.75,0.05069734]
[1742945831587,0.04952009,143.77,143.75,0.05069734]
[1742945832197,7.00442009,143.77,143.75,0.05069734]
[1742945832593,0.04952009,143.77,143.75,7.00629734]
[1742945833998,0.04952009,143.77,143.76,6.9552]
[1742945834299,0.04952009,143.77,143.76,15.17097868]
[1742945837399,6.953,143.81,143.78,6.954]
[1742945837595,32.95577868,143.83,143.78,8.21577868]
[1742945837796,8.21577868,143.83,143.78,8.21577868]
[1742945838402,32.95577868,143.84,143.78,8.21577868]
[1742945838699,0.04578152,143.82,143.79,0.04861059]
[1742945839291,0.04578152,143.82,143.8,6.953]
[1742945839801,0.04578152,143.82,143.79,0.04861059]
[1742945840103,6.99808152,143.82,143.79,7.00211059]
[1742945840298,0.04578152,143.82,143.8,8.21577868]
[1742945840791,0.04578152,143.82,143.8,32.95577868]
[1742945840995,8.21577868,143.87,143.8,32.95577868]
[1742945841307,8.21577868,143.87,143.83,8.21577868]
[1742945842298,0.05262305,143.86,143.84,0.05062313]
[1742945843703,0.05262305,143.86,143.85,8.21577868]
[1742945844894,8.21577868,143.9,143.84,0.05062313]
[1742945845101,8.21577868,143.9,143.85,8.21577868]
[1742945845901,8.21577868,143.88,143.84,0.05062313]
[1742945850406,8.24203803,143.89,143.84,8.26640181]
[1742945851010,8.24203803,143.89,143.84,15.21750181]
[1742945851510,8.21577868,143.87,143.84,0.05062313]
[1742945853114,8.21577868,143.85,143.84,0.05062313]
[1742945853909,0.02625935,143.86,143.84,0.05062313]
[1742945854505,0.02625935,143.86,143.85,6.9508]
[1742945857706,0.02625935,143.86,143.84,8.26640181]
[1742945857915,0.02625935,143.86,143.84,0.05062313]
[1742945860321,0.02625935,143.86,143.84,7.00172313]
[1742945861322,0.02625935,143.86,143.84,0.05062313]
[1742945861920,0.02625935,143.86,143.84,7.00182313]
[1742945862420,8.24203803,143.86,143.84,0.05062313]
[1742945867426,24.72,143.85,143.84,0.05062313]
[1742945878729,8.24203803,143.86,143.84,0.05062313]
[1742945878929,0.02625935,143.86,143.84,0.05062313]
[1742945879634,0.02625935,143.86,143.84,7.00182313]
[1742945882040,0.02625935,143.86,143.84,0.05062313]
[1742945882543,0.02625935,143.86,143.84,7.00182313]
[1742945882847,0.02625935,143.86,143.84,0.05062313]
[1742945885743,8.21577868,143.85,143.84,0.05062313]
[1742945885946,32.93577868,143.85,143.84,0.05062313]
[1742945891748,32.93577868,143.85,143.75,8.21577868]